[Event "Emanuel Lasker Open 2017"]
[Site "Gorzow"]
[Date "2017.06.20"]
[Round "9"]
[White "Gigola, Jacek"]
[Black "Lukasiewicz, Krzysztof"]
[Result "0-1"]
[ECO "A46"]
[WhiteElo "1919"]
[BlackElo "2098"]
[Annotator "NA RC"]
[PlyCount "32"]
[EventDate "2017.??.??"]
[EventType "swiss"]
[EventCountry "POL"]
[SourceTitle "playchess.com"]
[Source "ChessBase"]
[SourceQuality "1"]
[TimeControl "40/5400+30:1800+30"]

{[%evp 14,32,88,96,97,96,142,133,166,18,164,133,174,66,75,-25,-47,-287,-268,-606,-644]} 1. d4 {[%emt 0:02:26]} Nf6 {[%emt 0:00:06]} 2. Nf3 {[%emt 0:00:07]} e6 {[%emt 0:00:03]} 3. Bf4 {[%emt 0:00:19]} c5 {[%emt 0:00:06]} 4. e3 {[%emt 0:00:12]} Qb6 {[%emt 0:00:03]} 5. Na3 {[%emt 0:00:44]} d5 {[%emt 0:02:09]} 6. Nb5 {[%emt 0:00:15]} Na6 {[%emt 0:00:15]} 7. a4 {[%emt 0:07:46]} c4 {[%emt 0:03:10]} (7... Be7 $14) 8. c3 {[%emt 0:03:37] LiveBook: 3 Games} Bd7 {[%emt 0:03:47]} 9. b3 {[%emt 0:03:48]} Bxb5 {[%emt 0:12:30]} 10. axb5 {[%emt 0:00:10]} Qxb5 {[%emt 0:00:02]} 11. Ne5 $2 {[%emt 1:06:34]} (11. bxc4 $18 dxc4 12. Ne5) 11... Rc8 {[%emt 0:11:40]} (11... Qxb3 $11 {and Black is okay.} 12. Qxb3 cxb3) 12. bxc4 {[%emt 0:00:23]} dxc4 {[%emt 0:00:23]} 13. Ra4 {[%emt 0:07:53]} Nb4 {[%emt 0:15:05]} 14. Nxc4 {[%emt 0:01:15]} ({Much weaker is} 14. cxb4 Bxb4+ 15. Ke2 g5 $15) ({White should play} 14. Rxa7 $14 Nc6 15. Nxc4 Nxa7 16. Nd6+ Bxd6 17. Bxb5+ Nxb5 18. Qa4) 14... Rxc4 {[%emt 0:00:41]} 15. Bxc4 $2 {[%emt 0:01:05]} (15. Rxa7 $15 Nc6 16. Ra8+ Kd7 17. Bd3 (17. Bxc4 Qxc4 18. Qc2 b5 $17)) 15... Qxc4 {[%emt 0:00:06]} 16. Rxb4 $19 {[%emt 0:00:53]} (16. cxb4 b5 17. f3 bxa4 18. Qxa4+ Nd7 19. Kf2) 16... Qxc3+ ({Less strong is} 16... Bxb4 17. Qa4+ Ke7 18. Qxb4+ Qxb4 19. cxb4 $15) 0-1

[Event "Emanuel Lasker Open 2017"]
[Site "Gorzow"]
[Date "2017.06.20"]
[Round "9"]
[White "Chyzy, Jakub"]
[Black "Gawronski, Miroslaw"]
[Result "1-0"]
[ECO "B42"]
[WhiteElo "1838"]
[BlackElo "2071"]
[Annotator "NA RC"]
[PlyCount "73"]
[EventDate "2017.??.??"]
[EventType "swiss"]
[EventCountry "POL"]
[SourceTitle "playchess.com"]
[Source "ChessBase"]
[SourceQuality "1"]
[TimeControl "40/5400+30:1800+30"]

{[%evp 20,57,42,9,43,1,16,13,33,0,34,14,306,332,378,457,564,387,543,544,748,323,322,322,381,381,32767,32767,503,517,661,547,853,435,1510,1300,1557,2036,1429,1560]} 1. e4 {[%emt 0:00:00]} c5 {[%emt 0:00:53]} 2. Nf3 {[%emt 0:00:00]} e6 {[%emt 0:00:39]} 3. d4 {[%emt 0:00:00]} cxd4 {[%emt 0:00:12]} 4. Nxd4 {[%emt 0:00:00]} a6 {[%emt 0:00:27]} 5. Bd3 {[%emt 0:00:04]} Qc7 {[%emt 0:00:22]} 6. O-O {[%emt 0:00:11]} Nf6 {[%emt 0:01:22]} 7. Kh1 {[%emt 0:00:11]} d6 {[%emt 0:03:34]} 8. f4 {[%emt 0:01:11]} b6 {[%emt 0:00:58] B42: Sicilian: Kan Variation: 5 Bd3} (8... Nbd7 9. Nd2 b6 10. Qe2 Bb7 11. c4 Be7 12. b3 h5 13. Bb2 h4 14. b4 h3 15. g4 Nf8 16. f5 e5 {1-0 (42) Fluvia Poyatos,J (2512)-Lopez Martinez,J (2545) Barcelona 2015}) 9. Nc3 {[%emt 0:01:09]} Bb7 {[%emt 0:01:11]} 10. Bd2 $146 {[%emt 0:04:49]} ({Predecessor:} 10. Qe2 Nbd7 11. Bd2 Be7 12. Rae1 Nc5 13. e5 Nfd7 14. f5 dxe5 15. fxe6 fxe6 {0-1 (35) Dobes,V (2220)-Senkyr,M (2134) Czech Republic 2017}) 10... b5 {[%emt 0:05:48]} 11. a3 {[%emt 0:00:58]} Nbd7 {[%emt 0:00:13]} 12. Qf3 {[%emt 0:03:23]} Be7 {[%emt 0:02:58]} 13. Rae1 {[%emt 0:02:16]} Nb6 {[%emt 0:03:34]} 14. Qh3 {[%emt 0:01:59]} Nc4 {[%emt 0:01:21]} 15. Bc1 {[%emt 0:01:31]} Nxa3 $2 {[%emt 0:05:54]} (15... Qc5 $11 {and Black has nothing to worry.} 16. Nf3 Nd7) 16. bxa3 {[%emt 0:00:16]} O-O-O {[%emt 0:00:28]} 17. Bd2 {[%emt 0:05:38]} h5 {[%emt 0:01:53]} 18. Be2 {[%emt 0:14:09]} g6 {[%emt 0:10:04]} 19. Rb1 {[%emt 0:17:51]} Ng4 {[%emt 0:05:52] [#]} 20. Bxg4 {[%emt 0:09:04]} (20. Ncxb5 $142 $1 axb5 21. Rxb5) 20... hxg4 {[%emt 0:00:20]} 21. Qxg4 {[%emt 0:03:23]} Rh4 {[%emt 0:01:34]} 22. Qe2 {[%emt 0:02:29]} Rdh8 {[%emt 0:01:57]} 23. h3 {[%emt 0:00:25]} Qc5 {[%emt 0:06:37]} 24. Qd3 {[%emt 0:04:48]} Qh5 {[%emt 0:04:46]} 25. Ncxb5 {[%emt 0:04:21]} axb5 {[%emt 0:19:20]} 26. Rxb5 {[%emt 0:00:14]} (26. Rf3 $142) 26... Qg4 {[%emt 0:00:18]} (26... Rxh3+ $142 27. Qxh3 Qxh3+ 28. gxh3 Rxh3+ 29. Kg2 Rxa3) 27. Qc4+ Kd8 {[%emt 0:00:44]} 28. Rxb7 {[%emt 0:12:02]} Rxh3+ {[%emt 0:05:00]} 29. Kg1 $18 {[%emt 0:00:04]} Rh1+ {[%emt 0:03:12]} 30. Kf2 {[%emt 0:00:05]} Rxf1+ {[%emt 0:01:12]} 31. Qxf1 {[%emt 0:01:37]} Bf6 {[%emt 0:04:47]} 32. Nf3 {[%emt 0:05:34]} Ke8 {[%emt 0:01:38]} 33. e5 {[%emt 0:02:16]} dxe5 {[%emt 0:04:42]} 34. Rb8+ {[%emt 0:00:28]} Bd8 {[%emt 0:00:38]} 35. Bb4 {[%emt 0:01:02]} f5 {[%emt 0:02:12]} 36. Qb5+ {[%emt 0:00:13]} Kf7 {[%emt 0:00:14]} 37. Qd7+ {[%emt 0:00:05]} 1-0